bitfinex/quotes_SOLUSD_20250413
["timestamp","ask_amount","ask_price","bid_price","bid_amount"]
[1744511654285,7.574,132.03,132.01,18.64964886]
[1744511654812,7.5734,132.04,132.01,18.64964886]
[1744511659628,21.03096495,132.05,132.01,18.64964886]
[1744511661925,13.45786495,132.06,132.01,32.10751381]
[1744511662131,7.5717,132.07,132.02,13.45786495]
[1744511662419,7.5717,132.07,132.04,18.64964886]
[1744511662614,21.02956495,132.07,132.04,18.64964886]
[1744511662812,7.5717,132.07,132.02,32.10751381]
[1744511663007,21.02956495,132.07,132.02,32.10751381]
[1744511663826,88.5712,132.08,132.04,32.10751381]
[1744511664332,88.5712,132.08,132.04,18.64964886]
[1744511664507,88.5712,132.08,132.04,32.10751381]
[1744511664704,81.0,132.08,132.06,18.64964886]
[1744511664922,7.633,132.1,132.06,13.45786495]
[1744511665220,7.633,132.1,132.06,18.64964886]
[1744511665411,21.09086495,132.1,132.06,18.64964886]
[1744511666926,13.52086495,132.1,132.05,19.46346495]
[1744511667128,13.52086495,132.1,132.05,13.45786495]
[1744511667322,13.52086495,132.1,132.06,18.64964886]
[1744511667826,21.09116495,132.1,132.06,18.64964886]
[1744511669527,13.45786495,132.09,132.04,18.64964886]
[1744511669713,13.45786495,132.07,132.04,18.64964886]
[1744511669911,7.5723,132.06,132.02,18.64964886]
[1744511670130,21.02966495,132.07,132.02,32.10751381]
[1744511670324,7.5718,132.07,132.04,18.64964886]
[1744511673625,21.02966495,132.07,132.02,13.45786495]
[1744511676838,21.02966495,132.07,132.0,26.22514886]
[1744511677011,13.45786495,132.05,132.01,13.45786495]
[1744511677535,13.45786495,132.05,132.0,32.10751381]
[1744511678032,7.5734,132.04,132.0,32.10751381]
[1744511679533,21.03126495,132.04,131.97,0.063]
[1744511679729,21.03126495,132.04,132.0,18.64964886]
[1744511681036,7.5734,132.04,132.0,18.64964886]
[1744511681233,7.5731,132.05,132.02,13.45786495]
[1744511681724,7.5731,132.05,131.99,26.22564886]
[1744511681926,7.5731,132.05,131.98,1.6556]
[1744511681927,21.03096495,132.05,132.01,18.64964886]
[1744511682238,13.45786495,132.04,131.99,13.45786495]
[1744511682612,7.574,132.03,131.99,13.45786495]
[1744511682937,21.03186495,132.03,131.98,32.10751381]
[1744511683244,7.574,132.03,131.99,13.45786495]
[1744511683425,7.574,132.03,132.0,18.64964886]
[1744511684542,13.45786495,132.01,131.97,0.063]
[1744511684840,13.45786495,132.0,131.97,0.063]
[1744511685037,13.45786495,132.01,131.97,0.063]
[1744511686325,13.45786495,131.99,131.97,0.063]
[1744511686514,21.03476495,131.98,131.97,0.063]
[1744511686717,7.5769,131.98,131.97,0.063]
[1744511687218,21.03436495,131.99,131.97,0.063]
[1744511691219,7.5765,131.99,131.97,0.063]
[1744511691435,21.03476495,131.98,131.97,0.063]
[1744511691739,1.5546,132.03,131.97,0.063]
[1744511691740,13.45786495,132.0,131.97,0.063]
[1744511693244,21.03396495,132.0,131.97,0.063]
[1744511695641,7.5761,132.0,131.97,0.063]
[1744511695831,21.03396495,132.0,131.97,0.063]
[1744511696349,13.45786495,131.99,131.97,0.063]
[1744511697042,7.5761,132.0,131.97,0.063]
[1744511697243,8.62025095,131.99,131.97,0.063]
[1744511697754,16.19665095,131.99,131.97,0.063]
[1744511698250,8.62025095,131.98,131.97,0.063]
[1744511699435,8.62025095,131.98,131.97,0.0001]
[1744511699949,22.34275095,131.98,131.97,0.0001]
[1744511701323,27.20250208,131.98,131.97,0.0001]
[1744511703149,46.14470208,131.98,131.95,0.063]
[1744511703328,13.48000208,131.96,131.95,0.063]
[1744511703739,21.05800208,131.96,131.95,0.063]
[1744511705347,7.578,131.96,131.95,0.063]
[1744511705528,21.05800208,131.96,131.95,0.063]
[1744511705729,7.578,131.96,131.95,0.063]
[1744511705952,21.05800208,131.96,131.95,0.063]
[1744511707125,122.59270208,131.96,131.91,0.063]
[1744511707443,13.48000208,131.92,131.91,0.063]
[1744511708530,26.96000416,131.92,131.91,0.063]
[1744511708731,13.48000208,131.92,131.91,0.063]
[1744511708924,7.5792,131.94,131.91,0.063]
[1744511709140,13.48000208,131.93,131.91,0.063]
[1744511709325,21.05920208,131.94,131.91,0.063]
[1744511709527,7.5792,131.94,131.91,0.063]
[1744511709862,21.05920208,131.94,131.91,0.063]
[1744511711756,7.5792,131.94,131.91,18.71264886]
[1744511712051,99.9408,132.0,131.94,18.64964886]
[1744511712222,1.0,132.05,131.98,13.48000208]
[1744511712223,13.48000208,132.03,131.98,13.48000208]
[1744511712423,13.48000208,132.01,131.96,32.12965094]
[1744511712625,13.48000208,132.02,131.97,13.48000208]
[1744511713152,13.48000208,132.01,131.96,32.12965094]
[1744511713450,7.5751,132.01,131.97,13.48000208]
[1744511713839,13.48000208,132.02,131.97,13.48000208]
[1744511714637,21.05400208,132.03,131.99,18.64964886]
[1744511714850,21.05400208,132.03,131.99,13.48000208]
[1744511715060,81.0,132.04,132.0,13.48000208]
[1744511715226,102.05340208,132.04,132.01,18.64964886]
[1744511715552,102.05340208,132.04,131.98,32.12965094]
[1744511715553,13.48000208,132.03,131.98,32.12965094]
[1744511715924,13.48000208,132.03,131.98,18.64964886]
[1744511716139,88.5734,132.04,131.99,13.48000208]
[1744511716339,6.2291,132.08,132.01,13.48000208]
[1744511716669,13.48000208,132.07,132.03,18.64964886]
[1744511716837,13.54300208,132.08,132.03,32.12965094]
[1744511717038,13.54300208,132.08,132.05,18.64964886]
[1744511717039,0.063,132.08,132.05,18.64964886]
[1744511718371,0.063,132.08,132.07,18.64964886]
[1744511720372,0.063,132.08,132.07,13.48000208]
[1744511720744,0.063,132.08,132.06,32.12965094]
[1744511720952,0.063,132.08,132.06,18.64964886]
[1744511723153,0.063,132.08,132.07,13.48000208]
[1744511724352,0.063,132.08,132.06,32.12965094]
[1744511726872,0.063,132.08,132.06,18.64964886]
[1744511727850,0.063,132.08,132.06,32.12965094]
[1744511728047,0.063,132.08,132.06,18.64964886]
[1744511728576,0.063,132.08,132.06,32.12965094]
[1744511728755,0.063,132.08,132.06,18.64964886]
[1744511728950,13.54300208,132.08,132.03,18.64964886]
[1744511729155,13.54300208,132.08,132.03,32.12965094]
[1744511729351,0.063,132.08,132.06,18.64964886]
[1744511730070,0.063,132.08,132.06,32.12965094]
[1744511731772,0.063,132.08,132.04,18.64964886]
[1744511731957,0.063,132.08,132.05,13.48000208]
[1744511732381,0.063,132.08,132.04,13.48000208]
[1744511732760,0.063,132.08,132.06,18.64964886]
[1744511733980,0.063,132.08,132.06,32.12965094]
[1744511735059,0.063,132.08,132.06,18.64964886]
[1744511735381,0.063,132.08,132.05,13.48000208]
[1744511735674,0.063,132.08,132.06,13.48000208]
[1744511736579,0.063,132.08,132.07,13.48000208]
[1744511739568,0.063,132.08,132.06,18.64964886]
[1744511739775,0.063,132.08,132.06,32.12965094]
[1744511741266,0.063,132.08,132.06,27.25495882]
[1744511742191,0.063,132.08,132.07,8.60530996]
[1744511744192,0.063,132.08,132.07,27.25495882]
[1744511746096,0.063,132.08,132.07,34.82665882]
[1744511746472,0.063,132.08,132.07,35.25314353]
[1744511746673,0.063,132.1,132.09,20.21364886]
[1744511746970,0.03,132.12,132.11,0.42648471]
[1744511747292,35.29570996,132.21,132.11,0.42648471]
[1744511747293,2.6282144,132.24,132.18,0.14216157]
[1744511747495,2.6282144,132.24,132.23,27.25495882]
[1744511747993,2.6282144,132.24,132.23,35.24394353]
[1744511749184,2.6282144,132.24,132.23,18.64964886]
[1744511749389,2.6282144,132.24,132.23,32.05967385]
[1744511749691,2.6282144,132.24,132.23,40.04865856]
[1744511750071,11.48741008,132.3,132.29,13.41002499]
[1744511750276,13.41002499,132.35,132.29,13.41002499]
[1744511750474,20.96572499,132.35,132.31,18.64964886]
[1744511750772,9.1114,132.36,132.31,32.05967385]
[1744511750971,22.52142499,132.36,132.31,32.05967385]
[1744511751172,13.41002499,132.33,132.28,13.41002499]
[1744511751695,13.41002499,132.31,132.25,18.64964886]
[1744511751884,20.96822499,132.31,132.27,18.64964886]
[1744511752197,7.5575,132.32,132.28,13.41002499]
[1744511752593,7.5575,132.32,132.27,32.05967385]
[1744511752594,20.96752499,132.32,132.27,32.05967385]
[1744511752893,13.41002499,132.31,132.27,18.64964886]
[1744511753198,20.96752499,132.32,132.27,13.41002499]
[1744511754399,13.41002499,132.32,132.27,13.41002499]
[1744511755494,7.5568,132.33,132.28,13.41002499]
[1744511755698,20.96682499,132.33,132.28,13.41002499]
[1744511755894,13.41002499,132.32,132.27,13.41002499]
[1744511757591,20.96682499,132.33,132.28,13.41002499]
[1744511758086,32.30102499,132.34,132.29,13.41002499]
[1744511758379,7.5557,132.35,132.3,13.41002499]
[1744511758586,7.5557,132.35,132.31,13.41002499]
[1744511759092,7.5557,132.35,132.32,18.64964886]
[1744511759292,7.5552,132.36,132.32,13.41002499]
[1744511759604,7.5552,132.36,132.33,13.41002499]
[1744511760201,88.5546,132.37,132.33,13.41002499]
[1744511760381,101.96462499,132.37,132.32,13.41002499]
[1744511760583,13.41002499,132.35,132.3,13.41002499]
[1744511760784,13.41002499,132.34,132.3,18.64964886]
[1744511761105,13.41002499,132.35,132.3,32.05967385]
[1744511761717,13.41002499,132.32,132.25,14.0128]
[1744511761894,13.41002499,132.32,132.27,13.41002499]
[1744511762088,7.5568,132.33,132.3,13.41002499]
[1744511762515,7.5835,132.39,132.33,18.64964886]
[1744511762718,20.99352499,132.39,132.35,13.41002499]
[1744511763009,20.99352499,132.39,132.37,13.41002499]
[1744511763010,0.03,132.39,132.37,13.41002499]
[1744511763217,0.03,132.39,132.38,32.05967385]
[1744511763389,0.03,132.39,132.33,19.07613357]
[1744511763590,0.03,132.39,132.38,13.41002499]
[1744511764826,0.03,132.39,132.38,40.04015856]
[1744511764996,98.94684668,132.47,132.44,13.41002499]
[1744511764997,0.03,132.47,132.44,13.41002499]
[1744511765314,0.03,132.47,132.46,32.05967385]
[1744511765696,7.579,132.47,132.44,13.41002499]
[1744511765899,7.579,132.47,132.43,13.41002499]
[1744511766214,20.98902499,132.47,132.41,13.41002499]
[1744511766418,13.41002499,132.42,132.36,1.69726157]
[1744511766589,13.41002499,132.4,132.37,18.64964886]
[1744511766796,13.41002499,132.38,132.33,11.52069121]
[1744511767008,13.41002499,132.37,132.33,11.52069121]
[1744511767305,21.42087794,132.39,132.36,11.52069121]
[1744511767490,21.42087794,132.4,132.36,11.52069121]
[1744511768196,28.97427794,132.39,132.36,18.64964886]
[1744511768399,28.97427794,132.39,132.34,21.42087794]
[1744511768605,28.97427794,132.39,132.35,18.64964886]
[1744511769824,7.5522,132.41,132.37,21.42087794]
[1744511770119,21.42087794,132.43,132.39,18.64964886]
[1744511771929,7.5517,132.42,132.39,18.64964886]
[1744511772626,7.5517,132.42,132.4,18.64964886]
[1744511772919,21.42087794,132.41,132.37,18.64964886]
[1744511773224,21.42087794,132.4,132.37,18.64964886]
[1744511773518,26.431,132.42,132.34,40.0705268]
[1744511773519,21.42087794,132.39,132.34,40.0705268]
[1744511773905,28.97477794,132.39,132.34,40.0705268]
[1744511775429,21.42087794,132.36,132.31,13.7698]
[1744511775605,26.4375,132.39,132.3,21.42087794]
[1744511775606,21.42087794,132.35,132.3,21.42087794]
[1744511775806,21.42087794,132.34,132.28,6.3952]
[1744511776000,28.97827794,132.32,132.26,21.42087794]
[1744511776323,28.97827794,132.32,132.27,21.42087794]
[1744511776514,7.5574,132.32,132.28,18.64964886]
[1744511776911,28.97827794,132.32,132.28,18.64964886]
[1744511777229,21.42087794,132.3,132.24,27.81607794]
[1744511777598,21.42087794,132.3,132.25,18.64964886]
[1744511777837,21.42087794,132.28,132.23,29.18087794]
[1744511778132,21.42087794,132.28,132.23,21.42087794]
[1744511778325,47.87177794,132.32,132.23,21.42087794]
[1744511778326,21.42087794,132.29,132.24,21.42087794]
[1744511778629,21.42087794,132.25,132.2,6.4723]
[1744511778929,21.42087794,132.23,132.18,21.42087794]
[1744511779122,28.98297794,132.24,132.2,18.64964886]
[1744511779332,28.98297794,132.24,132.19,21.42087794]
[1744511779517,28.98297794,132.24,132.2,18.64964886]
[1744511779833,21.42087794,132.23,132.18,40.0705268]
[1744511780126,28.98297794,132.24,132.2,18.64964886]
[1744511781026,7.5621,132.24,132.2,18.64964886]
[1744511781529,21.42087794,132.23,132.18,40.0705268]
[1744511782227,21.42087794,132.21,132.18,18.64964886]
[1744511782434,21.42087794,132.19,132.17,161.28967701]
[1744511782620,28.98627794,132.18,132.17,161.28967701]
[1744511783627,7.5654,132.18,132.17,161.28967701]
[1744511784835,21.42087794,132.18,132.17,161.28967701]
[1744511785134,0.42648471,132.17,132.16,9.121e-05]
[1744511785435,29.18087794,132.17,132.14,23.10438243]
[1744511785615,21.42087794,132.15,132.14,23.10438243]
[1744511786434,21.42087794,132.15,132.14,8.243e-05]
[1744511786435,21.56303951,132.15,132.14,8.243e-05]
[1744511786620,21.56303951,132.15,132.13,7.60604729]
[1744511786931,109.98857794,132.14,132.13,7.60604729]
[1744511787138,128.90787794,132.14,132.1,92.16552972]
[1744511787450,21.42087794,132.11,132.05,21.42087794]
[1744511787635,21.42087794,132.09,132.04,21.42087794]
[1744511787834,21.42087794,132.09,132.02,18.64964886]
[1744511788019,21.42087794,132.1,132.05,21.42087794]
[1744511788219,7.76,132.12,132.09,18.64964886]
[1744511788413,7.76,132.12,132.08,21.42087794]
[1744511789428,7.76,132.12,132.07,40.0705268]
[1744511790034,7.76,132.12,132.07,18.64964886]
[1744511790426,7.76,132.12,132.07,40.0705268]
[1744511790718,7.76,132.12,132.08,21.42087794]
[1744511791351,7.5684,132.13,132.08,21.42087794]
[1744511791722,28.98927794,132.13,132.08,21.42087794]
[1744511792118,7.5684,132.13,132.09,21.42087794]
[1744511792541,7.7775,132.18,132.11,21.42087794]
[1744511792746,11.5855082,132.2,132.16,21.42087794]
[1744511793131,19.1499082,132.2,132.16,21.42087794]
[1744511793328,11.5855082,132.2,132.17,21.42087794]
[1744511794149,7.5641,132.21,132.17,21.42087794]
[1744511794333,21.42087794,132.22,132.14,19.07613357]
[1744511794651,21.42087794,132.22,132.17,21.42087794]
[1744511794967,88.563,132.23,132.17,21.42087794]
[1744511795134,88.5626,132.23,132.19,21.42087794]
[1744511795726,109.98347794,132.23,132.18,21.42087794]
[1744511796129,21.42087794,132.21,132.16,18.64964886]
[1744511796441,15.3221,132.24,132.19,21.42087794]
[1744511796636,7.76,132.24,132.2,21.42087794]
[1744511796830,7.5614,132.25,132.21,21.42087794]
[1744511797027,370.82097794,132.27,132.22,18.64964886]
[1744511797224,81.0,132.27,132.23,21.42087794]
[1744511797637,81.0,132.27,132.22,18.64964886]
[1744511797848,81.0,132.27,132.22,40.0705268]
[1744511797849,102.42087794,132.27,132.22,40.0705268]
[1744511798251,109.98137794,132.27,132.22,40.0705268]
[1744511798448,21.42087794,132.26,132.22,18.64964886]
[1744511798656,88.5605,132.27,132.22,40.0705268]
[1744511798657,109.98137794,132.27,132.22,40.0705268]
[1744511799032,88.5605,132.27,132.22,40.0705268]
[1744511799656,109.98137794,132.27,132.22,40.0705268]
[1744511800656,109.98137794,132.27,132.22,18.64964886]
[1744511801040,109.98137794,132.27,132.22,40.0705268]
[1744511801243,88.5605,132.27,132.22,40.0705268]
[1744511801561,29.18087794,132.28,132.24,21.42087794]
[1744511801562,7.76,132.28,132.24,21.42087794]
[1744511801736,21.42087794,132.27,132.23,18.64964886]
[1744511802260,21.42087794,132.26,132.19,7.5648]
[1744511802465,21.42087794,132.26,132.2,40.0705268]
[1744511802652,21.42087794,132.26,132.19,7.5648]
[1744511802653,36.74067794,132.28,132.23,40.0705268]
[1744511802848,15.3198,132.28,132.23,40.0705268]
[1744511803041,21.42087794,132.25,132.19,18.64964886]
[1744511803358,21.42087794,132.2,132.14,35.35907794]
[1744511803559,21.42087794,132.22,132.17,21.42087794]
[1744511803731,21.42087794,132.18,132.11,28.98977794]
[1744511803931,21.42087794,132.16,132.11,21.42087794]
[1744511804552,21.42087794,132.15,132.1,21.42087794]
[1744511804756,7.76,132.18,132.1,21.42087794]
[1744511805049,36.74627794,132.18,132.13,21.42087794]
[1744511805363,36.74627794,132.18,132.14,18.64964886]
[1744511806064,15.3254,132.18,132.14,18.64964886]
[1744511806267,15.3254,132.18,132.14,21.42087794]
[1744511806456,36.74627794,132.18,132.14,18.64964886]
[1744511807157,21.42087794,132.15,132.06,100.5929]
[1744511807341,21.42087794,132.15,132.11,18.64964886]
[1744511807747,21.42087794,132.16,132.11,40.0705268]
[1744511807955,21.42087794,132.16,132.11,18.64964886]
[1744511808243,21.42087794,132.15,132.11,18.64964886]
[1744511808965,34.239,132.18,132.11,18.64964886]
[1744511809143,21.42087794,132.16,132.11,18.64964886]
[1744511809462,34.239,132.18,132.06,18.9929]
[1744511809463,21.42087794,132.14,132.06,0.063]
[1744511809651,115.239,132.18,132.07,21.42087794]
[1744511809652,21.42087794,132.13,132.07,21.42087794]
[1744511809847,26.0,132.15,132.09,18.64964886]
[1744511810050,21.42087794,132.14,132.09,21.42087794]
[1744511810255,7.5683,132.13,132.09,21.42087794]
[1744511810440,28.98917794,132.13,132.08,21.42087794]
[1744511810641,28.98917794,132.13,132.09,18.64964886]
[1744511811971,28.98917794,132.13,132.06,7.77726157]
[1744511811972,21.42087794,132.12,132.07,21.42087794]
[1744511812172,21.42087794,132.08,132.06,0.063]
[1744511812468,21.42087794,132.07,132.06,0.063]
[1744511812672,21.42087794,132.09,132.06,0.063]
[1744511812967,21.42087794,132.07,132.06,0.063]
[1744511813470,28.99257794,132.07,132.06,0.063]
[1744511814063,47.92187794,132.07,132.02,0.79]
[1744511814250,21.42087794,132.03,132.02,0.79]
[1744511814664,21.42087794,132.04,132.02,0.79]
[1744511814966,81.0,132.06,132.02,0.79]
[1744511815169,102.42087794,132.06,132.02,0.79]
[1744511815344,21.42087794,132.05,132.01,0.063]
[1744511815549,28.99407794,132.05,132.01,18.71264886]
[1744511816055,7.5732,132.05,132.01,40.1335268]
[1744511816250,28.99407794,132.05,132.01,18.71264886]
[1744511816669,7.76,132.08,132.03,40.0705268]
[1744511816962,7.76,132.08,132.04,21.42087794]
[1744511817173,21.42087794,132.07,132.03,18.64964886]
[1744511817368,21.42087794,132.06,132.01,0.063]
[1744511817677,7.5728,132.05,132.01,40.1335268]
[1744511818053,7.5724,132.06,132.02,21.42087794]
[1744511818377,81.0,132.1,132.05,18.64964886]
[1744511818575,21.42087794,132.09,132.04,21.42087794]
[1744511818781,21.42087794,132.08,132.03,21.42087794]
[1744511819070,21.42087794,132.07,132.02,40.0705268]
[1744511819281,21.42087794,132.08,132.03,22.21087794]
[1744511819452,21.42087794,132.09,132.04,40.0705268]
[1744511819647,28.99197794,132.09,132.04,40.0705268]
[1744511820071,21.42087794,132.08,132.04,18.64964886]
[1744511820268,21.42087794,132.07,132.02,21.42087794]
[1744511820474,21.42087794,132.06,132.01,21.48387794]
[1744511820675,21.42087794,132.06,132.02,0.79]
[1744511820878,21.42087794,132.05,132.02,0.79]
[1744511821588,21.42087794,132.03,132.02,0.79]
[1744511821770,28.99487794,132.03,132.02,0.79]
[1744511822166,28.99447794,132.04,132.01,0.063]
[1744511823180,21.42087794,132.03,132.01,0.063]
[1744511823485,21.42087794,132.02,132.01,0.063]
[1744511823662,28.99547794,132.02,132.01,0.063]
[1744511823867,28.99547794,132.02,132.0,15.83]
[1744511824070,21.42087794,132.01,132.0,15.83]
[1744511824269,7.5746,132.02,132.0,15.83]
[1744511824471,28.99507794,132.03,132.0,15.83]
[1744511824995,21.42087794,132.02,132.0,15.83]
[1744511825179,7.5736,132.04,132.0,15.83]
[1744511825381,28.99447794,132.04,131.99,21.42087794]
[1744511825679,28.99517794,132.03,131.99,18.64964886]
[1744511826183,21.42087794,132.02,131.98,18.64964886]
[1744511826489,28.99517794,132.03,131.99,15.83]
[1744511827160,21.42087794,132.02,131.99,15.83]
[1744511827685,21.42087794,132.0,131.99,15.83]
[1744511829391,28.99657794,132.0,131.99,15.83]
[1744511829686,28.99617794,132.01,131.99,15.83]
[1744511830692,21.42087794,132.05,132.0,40.0705268]
[1744511830867,107.6907,132.07,132.0,40.0705268]
[1744511831068,21.42087794,132.06,132.01,21.42087794]
[1744511831481,21.42087794,132.05,132.0,40.0705268]
[1744511831676,107.6907,132.07,132.01,21.42087794]
[1744511831879,21.42087794,132.06,132.01,21.42087794]
[1744511832282,21.42087794,132.05,132.0,40.0705268]
[1744511832899,21.42087794,132.05,132.01,1.51]
[1744511833481,28.99417794,132.05,132.01,1.51]
[1744511837397,7.5733,132.05,132.01,22.93087794]
[1744511837576,88.76,132.07,132.02,40.0705268]
[1744511837782,29.20087794,132.11,132.06,21.42087794]
[1744511837996,0.03,132.12,132.1,21.42087794]
[1744511838198,0.03,132.12,132.11,40.0705268]
[1744511839702,0.03,132.12,132.11,47.6399268]
[1744511840575,0.03,132.12,132.11,48.06641151]
[1744511841778,81.0,132.19,132.11,48.06641151]
[1744511841979,88.5626,132.23,132.18,40.0705268]
[1744511842300,109.98347794,132.23,132.18,21.42087794]
[1744511842503,81.0,132.23,132.2,21.42087794]
[1744511843015,81.0,132.23,132.2,18.64964886]
[1744511843188,7.5921,132.24,132.2,18.64964886]
[1744511843387,7.5921,132.24,132.2,21.42087794]
[1744511843588,0.03,132.24,132.23,21.42087794]
[1744511844010,0.03,132.24,132.23,40.0705268]
[1744511847278,0.03,132.24,132.22,18.64964886]
[1744511847482,0.03,132.24,132.22,40.0705268]
[1744511847690,0.03,132.24,132.2,40.0705268]
[1744511847891,21.42087794,132.23,132.18,21.42087794]
[1744511848083,21.42087794,132.22,132.18,18.64964886]
[1744511848285,21.42087794,132.2,132.15,21.42087794]
[1744511848488,21.42087794,132.2,132.16,18.64964886]
[1744511848687,21.42087794,132.21,132.16,40.0705268]
[1744511848887,26.497,132.24,132.16,40.0705268]
[1744511848888,21.42087794,132.2,132.16,18.64964886]
[1744511849104,21.42087794,132.2,132.13,14.0819]
[1744511849105,21.42087794,132.19,132.14,21.42087794]
[1744511849284,49.47267794,132.24,132.13,27.74277794]
[1744511849285,21.42087794,132.18,132.13,27.74277794]
[1744511849481,21.42087794,132.19,132.14,21.42087794]
[1744511849700,21.42087794,132.2,132.15,40.0705268]
[1744511849886,7.5648,132.19,132.15,40.0705268]
[1744511851507,28.98567794,132.19,132.15,18.64964886]
[1744511851803,21.42087794,132.18,132.14,18.64964886]
[1744511852016,7.5648,132.19,132.15,21.42087794]
[1744511852303,7.5637,132.21,132.16,21.42087794]
[1744511852487,99.9076,132.23,132.2,18.64964886]
[1744511852488,81.0,132.23,132.2,18.64964886]
[1744511852689,7.592,132.24,132.2,40.0705268]
[1744511852907,0.03,132.24,132.22,18.64964886]
[1744511853085,0.03,132.24,132.23,40.0705268]
[1744511853986,0.03,132.24,132.23,47.6330268]
[1744511854302,0.03,132.24,132.23,40.0705268]
[1744511855023,21.45087794,132.24,132.19,40.0705268]
[1744511855208,0.03,132.24,132.21,18.64964886]
[1744511855603,0.03,132.24,132.21,50.36429583]
[1744511855810,0.03,132.24,132.22,31.71464697]
[1744511855989,0.03,132.24,132.21,50.36429583]
[1744511856711,0.03,132.24,132.21,18.64964886]
[1744511857512,0.03,132.24,132.19,18.64964886]
[1744511857705,31.74464697,132.24,132.19,50.36429583]
[1744511858491,39.30704697,132.24,132.19,50.36429583]
[1744511861413,0.03,132.24,132.23,31.71464697]
[1744511862395,0.03,132.24,132.22,31.71464697]
[1744511863014,0.03,132.24,132.22,18.64964886]
[1744511863211,0.03,132.24,132.22,50.36429583]
[1744511863597,0.03,132.24,132.23,50.36429583]
[1744511863913,0.03,132.24,132.23,18.64964886]
[1744511864217,0.03,132.24,132.21,18.64964886]
[1744511865704,0.03,132.24,132.16,18.79181043]
[1744511865904,0.03,132.24,132.22,31.71464697]
[1744511866208,0.03,132.24,132.21,50.36429583]
[1744511866609,31.74464697,132.24,132.2,18.64964886]
[1744511866925,0.03,132.24,132.2,50.36429583]
[1744511867219,0.03,132.24,132.21,31.71464697]
[1744511867612,0.03,132.24,132.2,50.36429583]
[1744511869421,0.03,132.24,132.22,50.36429583]
[1744511869628,0.03,132.24,132.2,7.5642]
[1744511869925,0.03,132.24,132.22,18.64964886]
[1744511870124,0.03,132.24,132.2,31.71464697]
[1744511870318,31.74464697,132.24,132.2,18.64964886]
[1744511870501,31.74464697,132.24,132.19,31.71464697]
[1744511870695,31.71464697,132.21,132.16,31.71464697]
[1744511870913,39.28094697,132.17,132.12,39.28324697]
[1744511871119,31.71464697,132.16,132.11,38.33844697]
[1744511871404,31.71464697,132.16,132.12,18.64964886]
[1744511871624,39.28094697,132.17,132.13,18.64964886]
[1744511871816,31.71464697,132.15,132.11,31.71464697]
[1744511872019,31.71464697,132.15,132.1,31.71464697]
[1744511872315,31.71464697,132.15,132.11,18.64964886]
[1744511872702,31.71464697,132.16,132.11,50.36429583]
[1744511873130,7.5671,132.15,132.11,50.36429583]
[1744511873532,88.76,132.2,132.15,18.64964886]
[1744511873533,31.71464697,132.19,132.15,18.64964886]
[1744511873725,81.0,132.2,132.16,31.71464697]
[1744511874103,39.27774697,132.22,132.18,18.64964886]
[1744511875600,7.5627,132.23,132.2,31.71464697]
[1744511876224,31.71464697,132.22,132.18,18.64964886]
[1744511877228,39.27824697,132.22,132.18,18.64964886]
[1744511877429,29.0412709,132.22,132.18,18.64964886]
[1744511877724,7.5636,132.22,132.18,21.4776709]
[1744511879029,7.5626,132.23,132.19,40.12731976]
[1744511879527,29.0402709,132.23,132.19,18.64964886]
[1744511879832,21.4776709,132.22,132.18,18.64964886]
[1744511880625,7.5637,132.21,132.18,18.64964886]
[1744511881428,7.5637,132.21,132.19,21.4776709]
[1744511882830,29.0401709,132.23,132.18,40.12731976]
[1744511883034,21.4776709,132.2,132.12,0.14216157]
[1744511883229,21.4776709,132.19,132.15,18.64964886]
[1744511883527,21.4776709,132.17,132.13,21.4776709]
[1744511883711,21.4776709,132.16,132.11,21.4776709]
[1744511884109,21.4776709,132.15,132.1,21.4776709]
[1744511884329,21.4776709,132.14,132.09,21.4776709]
[1744511884518,21.4776709,132.13,132.08,21.4776709]
[1744511884912,81.0,132.16,132.07,6.3341]
[1744511884913,29.0458709,132.14,132.1,40.12731976]
[1744511885216,81.0,132.16,132.13,21.4776709]
[1744511885420,21.4776709,132.18,132.13,21.4776709]
[1744511885814,29.0424709,132.19,132.14,21.4776709]
[1744511886142,21.4776709,132.18,132.13,21.4776709]
[1744511886307,29.0424709,132.19,132.14,21.4776709]
[1744511886506,21.4776709,132.18,132.14,18.64964886]
[1744511886713,7.5648,132.19,132.11,21.4776709]
[1744511886714,21.4776709,132.16,132.11,21.4776709]
[1744511886907,29.0447709,132.15,132.11,18.64964886]
[1744511887121,29.0443709,132.16,132.11,40.12731976]
[1744511887327,7.5667,132.16,132.12,21.4776709]